[Event "Turkish Championship 2023"]
[Site "Kemer Antalya"]
[Date "2023.12.03"]
[Round "2"]
[White "Tuncer, Ufuk"]
[Black "Eren, Ataberk"]
[Result "1/2-1/2"]
[ECO "B11"]
[WhiteElo "2360"]
[BlackElo "2429"]
[Annotator "RC"]
[PlyCount "128"]
[EventDate "2023.12.01"]
[EventType "tourn"]
[EventCountry "TUR"]
[SourceTitle "playchess.com"]
[Source "ChessBase"]
[SourceQuality "1"]
[TimeControl "40/5400+30:1800+30"]

1. e4 {[%emt 0:02:00]} c6 {[%emt 0:01:00]} 2. Nc3 {[%emt 0:00:00]} d5 {[%emt 0:00:30]} 3. Nf3 {[%emt 0:00:00]} Bg4 {[%emt 0:00:30]} 4. h3 {[%emt 0:00:00]} Bxf3 {[%emt 0:00:00]} 5. Qxf3 {[%emt 0:00:00]} e6 {[%emt 0:00:00]} 6. Be2 {[%emt 0:00:00]} Bc5 {[%emt 0:01:30]} 7. Qg3 {[%emt 0:01:00]} Bd4 {[%emt 0:00:30]} 8. d3 {[%emt 0:00:30]} Nd7 {[%emt 0:03:30]} 9. O-O {[%emt 0:00:00]} Ne7 {[%emt 0:00:30]} 10. Bd1 {[%emt 0:00:00]} Be5 {[%emt 0:02:30]} 11. f4 {[%emt 0:03:30]} Bd4+ {[%emt 0:01:30]} 12. Kh1 {[%emt 0:00:30]} O-O {[%emt 0:09:30]} 13. Ne2 {[%emt 0:01:30]} Bb6 {[%emt 0:00:30]} 14. c3 {[%emt 0:05:30]} Qc7 {[%emt 0:09:30]} 15. Bc2 {[%emt 0:05:30]} Rad8 {[%emt 0:00:30]} 16. Qf3 {[%emt 0:17:30]} c5 {[%emt 0:10:30]} 17. f5 {[%emt 0:25:30]} c4 {[%emt 0:04:30]} 18. Bf4 {[%emt 0:08:30]} e5 {[%emt 0:01:30]} 19. Bh2 {[%emt 0:00:30]} Nf6 {[%emt 0:13:30]} 20. d4 {[%emt 0:02:30]} dxe4 {[%emt 0:08:30]} 21. Bxe4 {[%emt 0:00:30]} Nxe4 {[%emt 0:00:30]} 22. Qxe4 {[%emt 0:00:00]} Qc6 {[%emt 0:00:30]} 23. Qg4 {[%emt 0:01:00]} Nd5 {[%emt 0:10:30]} 24. Bxe5 {[%emt 0:02:30]} f6 {[%emt 0:00:30]} 25. Bf4 {[%emt 0:01:30]} Rfe8 {[%emt 0:02:16]} 26. Ng3 {[%emt 0:08:22]} Rd7 {[%emt 0:03:16]} 27. Rae1 {[%emt 0:05:16]} Rde7 {[%emt 0:00:06]} 28. Nh5 {[%emt 0:03:17]} Nxf4 {[%emt 0:04:56]} 29. Rxe7 {[%emt 0:00:05]} Rxe7 {[%emt 0:00:12]} 30. Nxf4 {[%emt 0:01:17]} Bc7 {[%emt 0:04:21]} 31. Ne6 {[%emt 0:00:59]} Qd6 {[%emt 0:00:19]} 32. Nxc7 {[%emt 0:01:13]} Qxc7 {[%emt 0:00:08]} 33. Qf3 {[%emt 0:00:29]} Qd6 {[%emt 0:02:12]} 34. Kg1 {[%emt 0:00:43]} b5 {[%emt 0:01:35]} 35. a3 {[%emt 0:00:36]} Kf7 {[%emt 0:00:49]} 36. Kf2 {[%emt 0:01:30]} g6 {[%emt 0:01:07]} 37. Re1 {[%emt 0:01:12]} Rxe1 {[%emt 0:01:50]} 38. fxg6+ {[%emt 0:00:18]} hxg6 {[%emt 0:00:33]} 39. Kxe1 {[%emt 0:00:01]} a6 {[%emt 0:01:06]} 40. Kd1 {[%emt 0:00:00]} Qh2 {[%emt 0:00:00]} 41. Qb7+ {[%emt 0:04:42]} Kg8 {[%emt 0:01:44]} 42. Qe4 {[%emt 0:01:30]} Qg1+ {[%emt 0:03:30]} 43. Kc2 {[%emt 0:01:30]} f5 {[%emt 0:02:30]} 44. Qe2 {[%emt 0:00:30]} Kf8 {[%emt 0:00:30]} 45. Qf3 {[%emt 0:01:30]} Ke7 {[%emt 0:04:30]} 46. Qg3 {[%emt 0:00:30]} Qf1 {[%emt 0:00:30]} 47. Qf3 {[%emt 0:04:30]} Qe1 {[%emt 0:01:30]} 48. g3 {[%emt 0:02:30]} Kd6 {[%emt 0:01:30]} 49. h4 {[%emt 0:01:30]} Kc7 {[%emt 0:00:30]} 50. Qf4+ {[%emt 0:07:19]} Kd7 {[%emt 0:01:30]} 51. Qf3 {[%emt 0:05:19]} Kc7 {[%emt 0:00:30]} 52. Qg2 {[%emt 0:00:19]} Kd6 {[%emt 0:00:55]} 53. a4 {[%emt 0:03:07]} b4 {[%emt 0:03:10]} 54. cxb4 {[%emt 0:00:32]} Qxb4 {[%emt 0:00:06]} 55. Qf3 {[%emt 0:00:36]} Qxa4+ {[%emt 0:01:10]} 56. Kc1 {[%emt 0:00:01]} Qa1+ {[%emt 0:01:55]} 57. Kc2 {[%emt 0:00:01]} Qa4+ {[%emt 0:00:00]} 58. Kc1 {[%emt 0:00:09]} Qa1+ {[%emt 0:00:41]} 59. Kc2 {[%emt 0:00:06]} Qa4+ {[%emt 0:00:30]} 60. Kb1 {[%emt 0:00:01]} Qb3 {[%emt 0:01:25]} 61. Qf4+ {[%emt 0:00:04]} Kd7 {[%emt 0:00:18]} 62. Ka1 {[%emt 0:01:40]} Qd1+ {[%emt 0:04:37]} 63. Ka2 {[%emt 0:00:30]} Qb3+ {[%emt 0:00:30]} 64. Ka1 {[%emt 0:00:00]} Qd1+ {[%emt 0:01:40]} 1/2-1/2

[Event "Turkish Championship 2023"]
[Site "Kemer Antalya"]
[Date "2023.12.03"]
[Round "2"]
[White "Gunduz, Umut Erdem"]
[Black "Taspinar, Yanki"]
[Result "1/2-1/2"]
[ECO "C56"]
[WhiteElo "2318"]
[BlackElo "2318"]
[Annotator "RC"]
[PlyCount "84"]
[EventDate "2023.12.01"]
[EventType "tourn"]
[EventCountry "TUR"]
[SourceTitle "playchess.com"]
[Source "ChessBase"]
[SourceQuality "1"]
[TimeControl "40/5400+30:1800+30"]

1. e4 {[%emt 0:01:00]} e5 {[%emt 0:02:00]} 2. Nf3 {[%emt 0:00:00]} Nc6 {[%emt 0:00:30]} 3. d4 {[%emt 0:00:00]} exd4 {[%emt 0:00:00]} 4. Bc4 {[%emt 0:00:00]} Nf6 {[%emt 0:00:00]} 5. e5 {[%emt 0:00:00]} Ne4 {[%emt 0:00:30]} 6. O-O {[%emt 0:01:30]} Be7 {[%emt 0:06:30]} 7. c3 {[%emt 0:15:30]} d5 {[%emt 0:05:30]} 8. Bb3 {[%emt 0:00:00]} dxc3 {[%emt 0:26:30]} 9. Bxd5 {[%emt 0:01:00]} cxb2 {[%emt 0:01:30]} 10. Bxb2 {[%emt 0:00:30]} Nc5 {[%emt 0:00:00]} 11. Bxc6+ {[%emt 0:10:30]} bxc6 {[%emt 0:00:00]} 12. Nd4 {[%emt 0:00:00]} Ne6 {[%emt 0:24:30]} 13. Nxc6 {[%emt 0:01:00]} Qxd1 {[%emt 0:00:30]} 14. Rxd1 {[%emt 0:00:30]} Bc5 {[%emt 0:10:23]} 15. Ba3 {[%emt 0:05:30]} Bd7 {[%emt 0:03:29]} 16. Bxc5 {[%emt 0:00:30]} Bxc6 {[%emt 0:02:36]} 17. Ba3 {[%emt 0:06:30]} Ba4 {[%emt 0:00:28]} 18. Rd2 {[%emt 0:06:30]} Rd8 {[%emt 0:00:41]} 19. Rxd8+ {[%emt 0:00:30]} Kxd8 {[%emt 0:00:56]} 20. Nc3 {[%emt 0:00:00]} Bc6 {[%emt 0:00:10]} 21. Rd1+ {[%emt 0:06:00]} Kc8 {[%emt 0:00:18]} 22. Bc1 {[%emt 0:01:30]} Rd8 {[%emt 0:03:50]} 23. Rxd8+ {[%emt 0:00:30]} Nxd8 {[%emt 0:02:02]} 24. f4 {[%emt 0:00:00]} Bd7 {[%emt 0:01:10]} 25. Kf2 {[%emt 0:00:00]} Be6 {[%emt 0:01:35]} 26. Be3 {[%emt 0:02:30]} Nc6 {[%emt 0:00:38]} 27. a3 {[%emt 0:00:30]} a6 {[%emt 0:01:29]} 28. Ne4 {[%emt 0:00:30]} h5 {[%emt 0:03:14]} 29. Kg3 {[%emt 0:00:30]} Ne7 {[%emt 0:00:15]} 30. Nc5 {[%emt 0:01:30]} Nf5+ {[%emt 0:01:13]} 31. Kf2 {[%emt 0:00:30]} Bc4 {[%emt 0:00:07]} 32. Bd2 {[%emt 0:00:30]} g6 {[%emt 0:00:34]} 33. g3 {[%emt 0:00:30]} Nd4 {[%emt 0:00:39]} 34. Bc3 {[%emt 0:01:30]} Ne6 {[%emt 0:00:46]} 35. Ne4 {[%emt 0:00:00]} Kd7 {[%emt 0:00:31]} 36. f5 {[%emt 0:01:00]} gxf5 {[%emt 0:01:07]} 37. Nf6+ {[%emt 0:00:30]} Ke7 {[%emt 0:02:16]} 38. Nxh5 {[%emt 0:00:30]} c5 {[%emt 0:00:29]} 39. h4 {[%emt 0:01:30]} Nc7 {[%emt 0:00:31]} 40. Ng7 {[%emt 0:00:00]} Bd3 {[%emt 0:00:00]} 41. h5 {[%emt 0:17:00]} Nd5 {[%emt 0:06:33]} 42. h6 {[%emt 0:23:30]} f4 {[%emt 0:01:30]} 1/2-1/2

[Event "Turkish Championship 2023"]
[Site "Kemer Antalya"]
[Date "2023.12.03"]
[Round "2"]
[White "Metin, Enis"]
[Black "Tarhan, Adar"]
[Result "0-1"]
[ECO "C78"]
[WhiteElo "2031"]
[BlackElo "2434"]
[Annotator "RC"]
[PlyCount "178"]
[EventDate "2023.12.01"]
[EventType "tourn"]
[EventCountry "TUR"]
[SourceTitle "playchess.com"]
[Source "ChessBase"]
[SourceQuality "1"]
[TimeControl "40/5400+30:1800+30"]

1. e4 {[%emt 0:01:00]} e5 {[%emt 0:01:00]} 2. Nf3 {[%emt 0:00:30]} Nc6 {[%emt 0:00:00]} 3. Bb5 {[%emt 0:00:00]} a6 {[%emt 0:00:00]} 4. Ba4 {[%emt 0:00:00]} Nf6 {[%emt 0:00:00]} 5. O-O {[%emt 0:00:00]} b5 {[%emt 0:03:00]} 6. Bb3 {[%emt 0:00:00]} Bc5 {[%emt 0:00:00]} 7. c3 {[%emt 0:02:30]} d6 {[%emt 0:00:00]} 8. d4 {[%emt 0:00:30]} Bb6 {[%emt 0:00:00]} 9. a4 {[%emt 0:00:30]} Bg4 {[%emt 0:01:00]} 10. Bg5 {[%emt 0:05:30]} Bxf3 {[%emt 0:13:30]} 11. Qxf3 {[%emt 0:00:30]} exd4 {[%emt 0:00:30]} 12. axb5 {[%emt 0:00:30]} Ne5 {[%emt 0:00:30]} 13. Qd1 {[%emt 0:01:30]} h6 {[%emt 0:05:30]} 14. Bxf6 {[%emt 0:02:30]} Qxf6 {[%emt 0:00:30]} 15. cxd4 {[%emt 0:00:30]} Bxd4 {[%emt 0:00:30]} 16. Nc3 {[%emt 0:01:30]} Bxc3 {[%emt 0:00:30]} 17. bxc3 {[%emt 0:00:30]} O-O {[%emt 0:02:30]} 18. bxa6 {[%emt 0:09:30]} Nd7 {[%emt 0:00:30]} 19. Qd4 {[%emt 0:31:30]} Nc5 {[%emt 0:00:30]} 20. Bc4 {[%emt 0:00:30]} Ra7 {[%emt 0:00:30]} 21. e5 {[%emt 0:02:30]} Qxe5 {[%emt 0:01:30]} 22. Qxe5 {[%emt 0:00:30]} dxe5 {[%emt 0:00:00]} 23. Ra5 {[%emt 0:02:30]} Ne4 {[%emt 0:02:00]} 24. Re1 {[%emt 0:02:30]} Nd6 {[%emt 0:00:30]} 25. Bd5 {[%emt 0:00:30]} Rb8 {[%emt 0:00:30]} 26. g3 {[%emt 0:03:30]} Rb6 {[%emt 0:01:30]} 27. Rea1 {[%emt 0:00:30]} c6 {[%emt 0:02:30]} 28. Bg2 {[%emt 0:00:30]} f6 {[%emt 0:04:30]} 29. Rd1 {[%emt 0:02:30]} Nb5 {[%emt 0:00:30]} 30. Rd8+ {[%emt 0:01:30]} Kf7 {[%emt 0:00:00]} 31. Bxc6 {[%emt 0:03:30]} Rxc6 {[%emt 0:01:00]} 32. Rxb5 {[%emt 0:00:30]} Rcxa6 {[%emt 0:00:00]} 33. Rd2 {[%emt 0:04:30]} Rc6 {[%emt 0:00:00]} 34. Rc2 {[%emt 0:00:00]} Rac7 {[%emt 0:00:30]} 35. Rb3 {[%emt 0:00:00]} g5 {[%emt 0:00:00]} 36. Kg2 {[%emt 0:00:30]} Kg6 {[%emt 0:00:00]} 37. Kf3 {[%emt 0:00:00]} h5 {[%emt 0:01:30]} 38. h3 {[%emt 0:01:00]} Rc4 {[%emt 0:00:30]} 39. Ke3 {[%emt 0:00:30]} Kf5 {[%emt 0:00:30]} 40. f3 {[%emt 0:00:00]} g4 {[%emt 0:00:00]} 41. fxg4+ {[%emt 0:02:00]} hxg4 {[%emt 0:04:00]} 42. h4 {[%emt 0:01:30]} Re4+ {[%emt 0:03:30]} 43. Kf2 {[%emt 0:00:30]} Rc6 {[%emt 0:02:30]} 44. Re2 {[%emt 0:05:30]} Rec4 {[%emt 0:00:30]} 45. Re3 {[%emt 0:00:30]} Ra6 {[%emt 0:02:30]} 46. Re2 {[%emt 0:02:30]} Rd6 {[%emt 0:02:30]} 47. Ke3 {[%emt 0:02:30]} Kg6 {[%emt 0:10:30]} 48. Rd2 {[%emt 0:07:30]} Re4+ {[%emt 0:03:30]} 49. Kxe4 {[%emt 0:00:30]} Rxd2 {[%emt 0:00:30]} 50. Rb8 {[%emt 0:07:30]} Re2+ {[%emt 0:00:30]} 51. Kd5 {[%emt 0:00:30]} Kf5 {[%emt 0:00:30]} 52. c4 {[%emt 0:00:00]} Rd2+ {[%emt 0:00:00]} 53. Kc6 {[%emt 0:00:00]} Rd3 {[%emt 0:00:00]} 54. c5 {[%emt 0:00:00]} Rxg3 {[%emt 0:00:30]} 55. Kd7 {[%emt 0:00:00]} Rd3+ {[%emt 0:00:30]} 56. Ke7 {[%emt 0:00:00]} Rc3 {[%emt 0:02:30]} 57. Kd6 {[%emt 0:07:00]} e4 {[%emt 0:03:30]} 58. c6 {[%emt 0:01:30]} e3 {[%emt 0:02:30]} 59. c7 {[%emt 0:01:30]} g3 {[%emt 0:00:30]} 60. c8=Q+ {[%emt 0:04:58]} Rxc8 {[%emt 0:00:30]} 61. Rxc8 {[%emt 0:00:00]} g2 {[%emt 0:04:30]} 62. Rc1 {[%emt 0:00:18]} Kg4 {[%emt 0:00:30]} 63. Rg1 {[%emt 0:03:55]} Kg3 {[%emt 0:00:30]} 64. h5 {[%emt 0:00:30]} Kf2 {[%emt 0:00:00]} 65. Rb1 {[%emt 0:02:39]} g1=Q {[%emt 0:00:00]} 66. Rxg1 {[%emt 0:00:00]} Kxg1 {[%emt 0:00:30]} 67. h6 {[%emt 0:00:00]} e2 {[%emt 0:00:30]} 68. h7 {[%emt 0:00:00]} e1=Q {[%emt 0:00:30]} 69. h8=Q {[%emt 0:00:12]} Qe5+ {[%emt 0:00:00]} 70. Kc6 {[%emt 0:00:12]} Qe4+ {[%emt 0:00:00]} 71. Kd7 {[%emt 0:00:13]} f5 {[%emt 0:01:30]} 72. Qa1+ {[%emt 0:00:58]} Kf2 {[%emt 0:00:30]} 73. Qb2+ {[%emt 0:00:18]} Kf3 {[%emt 0:00:30]} 74. Qb3+ {[%emt 0:00:54]} Qe3 {[%emt 0:00:30]} 75. Qd5+ {[%emt 0:00:53]} Kg4 {[%emt 0:00:30]} 76. Qg2+ {[%emt 0:02:37]} Qg3 {[%emt 0:00:30]} 77. Qe2+ {[%emt 0:00:14]} Qf3 {[%emt 0:00:30]} 78. Qc4+ {[%emt 0:00:08]} f4 {[%emt 0:00:00]} 79. Qg8+ {[%emt 0:00:49]} Kh3 {[%emt 0:03:00]} 80. Qh8+ {[%emt 0:00:08]} Kg3 {[%emt 0:00:30]} 81. Qe5 {[%emt 0:00:53]} Qe3 {[%emt 0:04:30]} 82. Qg5+ {[%emt 0:00:27]} Kf2 {[%emt 0:00:30]} 83. Qh4+ {[%emt 0:00:19]} Qg3 {[%emt 0:00:00]} 84. Qh7 {[%emt 0:02:01]} f3 {[%emt 0:02:00]} 85. Qc2+ {[%emt 0:00:40]} Kg1 {[%emt 0:00:00]} 86. Qd1+ {[%emt 0:00:54]} Kh2 {[%emt 0:00:00]} 87. Kd8 {[%emt 0:00:18]} Qg5+ {[%emt 0:00:30]} 88. Ke8 {[%emt 0:02:05]} f2 {[%emt 0:03:30]} 89. Qc2 {[%emt 0:02:49]} Kg1 {[%emt 0:00:30]} 0-1

[Event "Turkish Championship 2023"]
[Site "Kemer Antalya"]
[Date "2023.12.03"]
[Round "2"]
[White "Tirpan, Ceren"]
[Black "Isik, Alparslan"]
[Result "1/2-1/2"]
[ECO "E15"]
[WhiteElo "1940"]
[BlackElo "2452"]
[Annotator "RC"]
[PlyCount "163"]
[EventDate "2023.12.01"]
[EventType "tourn"]
[EventCountry "TUR"]
[SourceTitle "playchess.com"]
[Source "ChessBase"]
[SourceQuality "1"]
[TimeControl "40/5400+30:1800+30"]

1. Nf3 {[%emt 0:01:00]} d5 {[%emt 0:01:00]} 2. c4 {[%emt 0:00:00]} e6 {[%emt 0:00:30]} 3. g3 {[%emt 0:00:00]} Nf6 {[%emt 0:00:30]} 4. Bg2 {[%emt 0:00:00]} Be7 {[%emt 0:04:30]} 5. O-O {[%emt 0:02:00]} O-O {[%emt 0:00:00]} 6. b3 {[%emt 0:03:30]} b6 {[%emt 0:03:00]} 7. Bb2 {[%emt 0:03:30]} Bb7 {[%emt 0:04:30]} 8. d4 {[%emt 0:05:30]} Nbd7 {[%emt 0:07:30]} 9. Nbd2 {[%emt 0:05:30]} a5 {[%emt 0:08:30]} 10. a3 {[%emt 0:16:30]} c5 {[%emt 0:01:30]} 11. Ne5 {[%emt 0:10:30]} Qc7 {[%emt 0:05:30]} 12. Nxd7 {[%emt 0:11:30]} Qxd7 {[%emt 0:00:30]} 13. Rc1 {[%emt 0:07:30]} Rac8 {[%emt 0:12:30]} 14. cxd5 {[%emt 0:07:30]} exd5 {[%emt 0:01:30]} 15. dxc5 {[%emt 0:00:30]} bxc5 {[%emt 0:02:30]} 16. Bxf6 {[%emt 0:10:14]} Bxf6 {[%emt 0:00:30]} 17. Nc4 {[%emt 0:00:00]} Qe6 {[%emt 0:07:30]} 18. Nxa5 {[%emt 0:05:44]} Ba8 {[%emt 0:00:00]} 19. Qd2 {[%emt 0:00:00]} c4 {[%emt 0:14:00]} 20. bxc4 {[%emt 0:00:53]} dxc4 {[%emt 0:00:30]} 21. Bxa8 {[%emt 0:02:18]} c3 {[%emt 0:00:00]} 22. Qd5 {[%emt 0:00:17]} Rxa8 {[%emt 0:00:00]} 23. Qxe6 {[%emt 0:00:30]} fxe6 {[%emt 0:00:00]} 24. Nc4 {[%emt 0:00:18]} Ra4 {[%emt 0:01:00]} 25. Nb6 {[%emt 0:00:36]} Rxa3 {[%emt 0:02:30]} 26. Nd7 {[%emt 0:00:38]} Rd8 {[%emt 0:09:13]} 27. Nxf6+ {[%emt 0:00:30]} gxf6 {[%emt 0:00:00]} 28. Rc2 {[%emt 0:00:24]} Rb3 {[%emt 0:00:05]} 29. Rfc1 {[%emt 0:00:30]} Rc8 {[%emt 0:00:00]} 30. Kg2 {[%emt 0:00:00]} Kf7 {[%emt 0:08:09]} 31. Kf3 {[%emt 0:00:00]} e5 {[%emt 0:01:08]} 32. Ke3 {[%emt 0:00:00]} f5 {[%emt 0:01:28]} 33. f3 {[%emt 0:02:34]} Rc6 {[%emt 0:04:17]} 34. Kd3 {[%emt 0:00:59]} Rh6 {[%emt 0:00:04]} 35. e3 {[%emt 0:03:46]} Ra3 {[%emt 0:01:41]} 36. Rb1 {[%emt 0:01:52]} Ra7 {[%emt 0:01:02]} 37. Rb4 {[%emt 0:01:00]} Rd6+ {[%emt 0:01:11]} 38. Kxc3 {[%emt 0:00:19]} Ra3+ {[%emt 0:00:30]} 39. Rb3 {[%emt 0:00:17]} Rc6+ {[%emt 0:00:37]} 40. Kb2 {[%emt 0:00:00]} Ra2+ {[%emt 0:00:36]} 41. Kxa2 {[%emt 0:01:21]} Rxc2+ {[%emt 0:30:30]} 42. Rb2 {[%emt 0:00:00]} Rc1 {[%emt 0:00:00]} 43. f4 {[%emt 0:08:00]} Re1 {[%emt 0:00:00]} 44. fxe5 {[%emt 0:01:30]} Rxe3 {[%emt 0:00:00]} 45. Rf2 {[%emt 0:00:30]} Kg6 {[%emt 0:00:00]} 46. Kb2 {[%emt 0:00:00]} Rxe5 {[%emt 0:00:00]} 47. Kc3 {[%emt 0:00:00]} Kg5 {[%emt 0:00:00]} 48. Kd3 {[%emt 0:02:30]} h5 {[%emt 0:00:00]} 49. Rf4 {[%emt 0:02:30]} Re1 {[%emt 0:00:00]} 50. Kd2 {[%emt 0:00:30]} Re5 {[%emt 0:00:00]} 51. Kd3 {[%emt 0:00:30]} Kf6 {[%emt 0:00:00]} 52. Rh4 {[%emt 0:00:30]} Kg6 {[%emt 0:00:00]} 53. Rf4 {[%emt 0:00:30]} Re1 {[%emt 0:00:00]} 54. Kd2 {[%emt 0:00:30]} Rh1 {[%emt 0:00:00]} 55. Rh4 {[%emt 0:00:30]} Ra1 {[%emt 0:00:00]} 56. Ke3 {[%emt 0:00:30]} Ra2 {[%emt 0:00:00]} 57. Kf3 {[%emt 0:00:00]} Kg5 {[%emt 0:00:00]} 58. Ke3 {[%emt 0:00:00]} Ra3+ {[%emt 0:00:00]} 59. Kf2 {[%emt 0:00:30]} Rb3 {[%emt 0:00:00]} 60. Kg2 {[%emt 0:00:00]} Rb2+ {[%emt 0:00:00]} 61. Kg1 {[%emt 0:00:00]} Kg6 {[%emt 0:00:00]} 62. Rf4 {[%emt 0:00:30]} Rb8 {[%emt 0:00:09]} 63. Kg2 {[%emt 0:00:30]} Kf6 {[%emt 0:00:00]} 64. Rh4 {[%emt 0:00:30]} Rb2+ {[%emt 0:00:13]} 65. Kg1 {[%emt 0:00:00]} Kg5 {[%emt 0:00:50]} 66. Rf4 {[%emt 0:00:00]} Re2 {[%emt 0:00:00]} 67. Rf2 {[%emt 0:00:30]} Re4 {[%emt 0:00:00]} 68. Kg2 {[%emt 0:00:30]} Kg4 {[%emt 0:01:13]} 69. Rf1 {[%emt 0:03:30]} h4 {[%emt 0:00:34]} 70. gxh4 {[%emt 0:00:42]} f4 {[%emt 0:00:44]} 71. h3+ {[%emt 0:01:00]} Kf5 {[%emt 0:00:14]} 72. Ra1 {[%emt 0:01:01]} Re2+ {[%emt 0:00:54]} 73. Kf3 {[%emt 0:00:06]} Re3+ {[%emt 0:00:23]} 74. Kg2 {[%emt 0:00:30]} Rg3+ {[%emt 0:00:30]} 75. Kh2 {[%emt 0:00:00]} Rd3 {[%emt 0:00:00]} 76. Kg2 {[%emt 0:00:49]} Rc3 {[%emt 0:09:06]} 77. Ra4 {[%emt 0:01:31]} Rb3 {[%emt 0:00:30]} 78. Rc4 {[%emt 0:00:00]} Rg3+ {[%emt 0:00:08]} 79. Kh2 {[%emt 0:00:18]} Rg8 {[%emt 0:00:05]} 80. Ra4 {[%emt 0:01:13]} Rd8 {[%emt 0:00:58]} 81. Kg2 {[%emt 0:00:10]} Rd3 {[%emt 0:00:54]} 82. Rb4 {[%emt 0:00:08]} 1/2-1/2

[Event "Turkish Championship 2023"]
[Site "Kemer Antalya"]
[Date "2023.12.04"]
[Round "3"]
[White "Isik, Alparslan"]
[Black "Metin, Enis"]
[Result "1-0"]
[ECO "A09"]
[WhiteElo "2452"]
[BlackElo "2031"]
[Annotator "RC"]
[PlyCount "79"]
[EventDate "2023.12.01"]
[EventType "tourn"]
[EventCountry "TUR"]
[SourceTitle "playchess.com"]
[Source "ChessBase"]
[SourceQuality "1"]
[TimeControl "40/5400+30:1800+30"]

1. Nf3 {[%emt 0:03:00]} d5 {[%emt 0:01:00]} 2. c4 {[%emt 0:00:30]} d4 {[%emt 0:00:00]} 3. b4 {[%emt 0:02:30]} f6 {[%emt 0:00:00]} 4. Bb2 {[%emt 0:04:30]} e5 {[%emt 0:00:30]} 5. a3 {[%emt 0:00:30]} a5 {[%emt 0:09:30]} 6. c5 {[%emt 0:06:30]} axb4 {[%emt 0:09:30]} 7. axb4 {[%emt 0:00:30]} Rxa1 {[%emt 0:00:00]} 8. Bxa1 {[%emt 0:00:00]} Qd5 {[%emt 0:00:00]} 9. Qc2 {[%emt 0:07:00]} Nc6 {[%emt 0:15:30]} 10. e4 {[%emt 0:03:30]} dxe3 {[%emt 0:01:30]} 11. Bc4 {[%emt 0:04:30]} exf2+ {[%emt 0:01:30]} 12. Kxf2 {[%emt 0:00:00]} Nxb4 {[%emt 0:01:30]} 13. Qa4+ {[%emt 0:01:00]} b5 {[%emt 0:02:30]} 14. cxb6+ {[%emt 0:28:30]} Qd7 {[%emt 0:03:30]} 15. Qb3 {[%emt 0:02:30]} Nh6 {[%emt 0:02:30]} 16. Re1 {[%emt 0:00:30]} Kd8 {[%emt 0:10:30]} 17. d4 cxb6 {[%emt 0:03:30]} 18. dxe5 {[%emt 0:06:00]} Bc5+ {[%emt 0:00:30]} 19. Kf1 {[%emt 0:00:00]} Ng4 {[%emt 0:01:30]} 20. exf6 {[%emt 0:15:22]} Rf8 {[%emt 0:06:30]} 21. h3 {[%emt 0:01:06]} Nxf6 {[%emt 0:01:30]} 22. Rd1 {[%emt 0:00:52]} Nfd5 {[%emt 0:03:30]} 23. Bxd5 {[%emt 0:02:43]} Ba6+ {[%emt 0:00:30]} 24. Ke1 {[%emt 0:00:06]} Qe7+ {[%emt 0:03:30]} 25. Be6+ {[%emt 0:03:11]} Nd3+ {[%emt 0:01:30]} 26. Rxd3+ {[%emt 0:00:44]} Bxd3 {[%emt 0:00:30]} 27. Qxd3+ {[%emt 0:00:00]} Kc7 {[%emt 0:00:30]} 28. Qc4 {[%emt 0:03:13]} b5 {[%emt 0:00:30]} 29. Be5+ {[%emt 0:02:34]} Kb6 {[%emt 0:00:30]} 30. Qe4 {[%emt 0:00:28]} Re8 {[%emt 0:00:30]} 31. Bb3 {[%emt 0:00:39]} Qa7 {[%emt 0:00:30]} 32. Nbd2 {[%emt 0:01:03]} Re7 {[%emt 0:00:30]} 33. Ke2 {[%emt 0:00:51]} Bd6 {[%emt 0:01:30]} 34. Qd4+ {[%emt 0:00:15]} Bc5 {[%emt 0:00:00]} 35. Qd8+ {[%emt 0:00:30]} Ka6 {[%emt 0:00:00]} 36. Ne4 {[%emt 0:00:26]} Qb6 {[%emt 0:00:30]} 37. Qc8+ {[%emt 0:00:21]} Ka5 {[%emt 0:00:00]} 38. Nxc5 {[%emt 0:00:49]} Kb4 {[%emt 0:00:00]} 39. Nd3+ {[%emt 0:00:21]} Kxb3 {[%emt 0:00:30]} 40. Qc3+ {[%emt 0:00:00]} 1-0

[Event "Turkish Championship 2023"]
[Site "Kemer Antalya"]
[Date "2023.12.04"]
[Round "3"]
[White "Tarhan, Adar"]
[Black "Gunduz, Umut Erdem"]
[Result "1/2-1/2"]
[ECO "B32"]
[WhiteElo "2434"]
[BlackElo "2318"]
[Annotator "RC"]
[PlyCount "85"]
[EventDate "2023.12.01"]
[EventType "tourn"]
[EventCountry "TUR"]
[SourceTitle "playchess.com"]
[Source "ChessBase"]
[SourceQuality "1"]
[TimeControl "40/5400+30:1800+30"]

1. e4 {[%emt 0:02:00]} c5 {[%emt 0:01:00]} 2. Nf3 {[%emt 0:00:30]} Nc6 {[%emt 0:00:30]} 3. d4 {[%emt 0:00:00]} cxd4 {[%emt 0:00:00]} 4. Nxd4 {[%emt 0:00:00]} e5 {[%emt 0:00:00]} 5. Nb5 {[%emt 0:00:00]} d6 {[%emt 0:00:00]} 6. c4 {[%emt 0:01:00]} g6 {[%emt 0:00:00]} 7. N1c3 {[%emt 0:08:30]} a6 {[%emt 0:00:30]} 8. Na3 {[%emt 0:00:30]} Be6 {[%emt 0:03:30]} 9. Nc2 {[%emt 0:00:30]} Nf6 {[%emt 0:04:30]} 10. Be2 {[%emt 0:00:30]} Bg7 {[%emt 0:02:30]} 11. O-O {[%emt 0:03:30]} O-O {[%emt 0:00:30]} 12. Be3 {[%emt 0:01:30]} Rc8 {[%emt 0:03:30]} 13. Qd2 {[%emt 0:07:30]} Ne7 {[%emt 0:06:30]} 14. b3 {[%emt 0:00:30]} b5 {[%emt 0:00:30]} 15. cxb5 {[%emt 0:07:30]} Qc7 {[%emt 0:04:30]} 16. Bc4 {[%emt 0:04:30]} Bxc4 {[%emt 0:02:30]} 17. b6 {[%emt 0:00:00]} Qb7 {[%emt 0:07:30]} 18. bxc4 {[%emt 0:00:00]} Rxc4 {[%emt 0:00:00]} 19. Na3 {[%emt 0:01:30]} Nxe4 {[%emt 0:00:00]} 20. Nxe4 {[%emt 0:00:30]} Rxe4 {[%emt 0:00:30]} 21. Qxd6 {[%emt 0:00:00]} Rg4 {[%emt 0:03:30]} 22. f3 {[%emt 0:01:00]} Nf5 {[%emt 0:05:30]} 23. Qc7 {[%emt 0:00:00]} Qd5 {[%emt 0:30:30]} 24. Qc5 {[%emt 0:01:00]} Nxe3 {[%emt 0:02:30]} 25. Qxd5 {[%emt 0:02:30]} Rxg2+ {[%emt 0:00:30]} 26. Kh1 {[%emt 0:00:00]} Nxd5 {[%emt 0:00:30]} 27. Kxg2 {[%emt 0:00:00]} Ne3+ {[%emt 0:00:30]} 28. Kf2 {[%emt 0:00:30]} Nxf1 {[%emt 0:00:00]} 29. Kxf1 {[%emt 0:01:30]} e4 {[%emt 0:01:00]} 30. Rb1 {[%emt 0:00:00]} exf3 {[%emt 0:03:18]} 31. Nc4 {[%emt 0:02:00]} Bh6 {[%emt 0:00:55]} 32. b7 {[%emt 0:01:30]} Bf4 {[%emt 0:00:07]} 33. h3 {[%emt 0:00:30]} g5 {[%emt 0:03:50]} 34. Kf2 {[%emt 0:00:30]} f5 {[%emt 0:01:54]} 35. Kxf3 {[%emt 0:00:00]} Bb8 {[%emt 0:00:42]} 36. Rb6 {[%emt 0:03:00]} g4+ {[%emt 0:01:38]} 37. hxg4 {[%emt 0:01:30]} fxg4+ {[%emt 0:00:30]} 38. Kg2 {[%emt 0:00:00]} Kg7 {[%emt 0:05:02]} 39. Rxa6 {[%emt 0:01:00]} h5 {[%emt 0:00:06]} 40. Ne3 {[%emt 0:00:00]} Rf7 {[%emt 0:00:00]} 41. Rb6 {[%emt 0:03:00]} Rf3 {[%emt 0:23:56]} 42. Rb3 {[%emt 0:00:30]} Kg6 {[%emt 0:02:09]} 43. Nxg4 {[%emt 0:00:30]} 1/2-1/2